bitfinex-derivatives/quotes_SOLF0:USTF0_20241026
["timestamp","ask_amount","ask_price","bid_price","bid_amount"]
[1729958699981,2.9622,169.01,168.97,2.9627]
[1729958700177,2.9622,169.01,168.94,4.56]
[1729958700377,4.56,169.05,168.94,4.56]
[1729958700572,2.9619,169.02,168.97,2.9627]
[1729958700777,2.9619,169.02,168.94,4.56]
[1729958701282,2.9619,169.02,168.98,2.9625]
[1729958701685,2.9621,169.01,168.98,2.9625]
[1729958702982,5.46557676,169.09,168.94,4.56]
[1729958703179,2.9619,169.02,168.94,4.56]
[1729958703371,4.56,169.06,168.94,4.56]
[1729958703577,2.9616,169.04,168.97,2.9626]
[1729958703781,4.56,169.06,168.98,5.8618]
[1729958704182,2.9617,169.03,169.0,2.9622]
[1729958704479,4.56,169.06,169.0,2.9622]
[1729958704981,2.9616,169.04,169.0,2.9622]
[1729958706180,2.9619,169.02,168.99,4.56]
[1729958706684,2.9618,169.03,168.99,7.5223]
[1729958707385,2.9619,169.02,168.99,7.5223]
[1729958707690,4.56,169.08,169.02,2.9618]
[1729958707986,2.9615,169.05,168.99,4.56]
[1729958708382,4.56,169.08,169.01,2.9619]
[1729958708588,2.9615,169.04,169.01,2.9619]
[1729958708890,2.5101,169.09,168.99,4.56]
[1729958708891,2.5101,169.09,169.03,2.9616]
[1729958709184,2.9619,169.02,168.99,4.56]
[1729958710285,2.9619,169.02,168.99,7.5223]
[1729958710583,7.0701,169.09,168.92,1.2776]
[1729958710889,7.0701,169.09,168.96,2.9628]
[1729958711088,7.0701,169.09,168.93,5.7835]
[1729958711288,7.0701,169.09,168.97,2.9626]
[1729958711483,7.0701,169.09,168.97,4.56]
[1729958711990,2.9617,169.04,168.97,4.56]
[1729958713086,7.0701,169.09,168.97,4.56]
[1729958713288,2.9615,169.05,169.01,2.962]
[1729958715992,7.0701,169.09,168.99,1.2482]
[1729958716187,2.9612,169.06,169.03,2.9616]
[1729958716387,7.0701,169.09,169.01,4.56]
[1729958717194,2.9615,169.05,169.02,2.9618]
[1729958720993,7.0701,169.09,169.03,2.9616]
[1729958721292,7.0701,169.09,169.01,4.56]
[1729958721695,2.9611,169.07,169.02,2.9617]
[1729958721891,7.0701,169.09,169.01,4.56]
[1729958722698,2.9614,169.05,169.02,2.9618]
[1729958722991,176.32656861,169.14,169.01,4.56]
[1729958723192,4.56,169.11,169.01,4.56]
[1729958723381,4.56,169.12,169.01,4.56]
[1729958723691,178.82596861,169.14,169.01,4.56]
[1729958723993,2.9608,169.09,169.06,2.9612]
[1729958724695,4.56,169.13,169.01,4.56]
[1729958725795,2.9604,169.11,169.07,2.9609]
[1729958728196,4.56,169.13,169.06,4.56]
[1729958728397,2.9607,169.09,169.06,4.56]
[1729958728595,4.56,169.13,168.99,2.4762]
[1729958728793,2.9609,169.08,169.03,2.9615]
[1729958728994,4.56,169.13,169.0,4.56]
[1729958729297,2.9606,169.1,169.06,2.9611]
[1729958729596,4.56,169.13,169.06,2.9611]
[1729958730996,2.9606,169.1,169.06,2.9611]
[1729958731297,4.56,169.13,169.06,2.9611]
[1729958731498,2.9612,169.07,169.05,4.56]
[1729958731703,2.9612,169.07,169.04,2.9615]
[1729958733599,4.56,169.13,169.02,4.54]
[1729958733797,2.9605,169.1,169.06,2.9611]
[1729958734099,4.56,169.13,169.02,4.54]
[1729958734299,2.961,169.08,169.04,2.9614]
[1729958736200,4.56,169.13,169.02,4.54]
[1729958736398,2.9609,169.08,169.05,2.9612]
[1729958737496,2.9613,169.06,169.02,7.5019]
[1729958737703,4.56,169.13,169.02,4.54]
[1729958738699,2.9609,169.08,169.05,2.9613]
[1729958746407,4.56,169.13,168.99,2.4762]
[1729958746602,2.9613,169.06,169.0,4.54]
[1729958747106,2.9613,169.06,169.03,2.9617]
[1729958747708,2.9611,169.07,169.03,2.9617]
[1729958748207,2.9611,169.07,169.0,4.54]
[1729958748503,2.9611,169.07,169.04,2.9615]
[1729958750209,4.56,169.13,169.0,4.54]
[1729958750406,2.9607,169.09,169.0,4.54]
[1729958751104,2.4994,169.14,169.0,4.54]
[1729958751309,5.9165,169.23,169.0,4.54]
[1729958751509,7.0392,169.21,169.0,4.54]
[1729958751711,2.9598,169.14,169.1,2.9604]
[1729958752011,2.9598,169.14,169.09,4.54]
[1729958752200,2.9591,169.19,169.09,4.54]
[1729958752706,2.9591,169.19,169.1,1.2628]
[1729958753206,2.9591,169.19,169.14,2.9597]
[1729958753410,2.9591,169.19,169.1,1.2628]
[1729958754011,2.9591,169.19,169.14,2.9598]
[1729958755011,4.54,169.2,169.14,2.9598]
[1729958755310,2.9591,169.18,169.14,2.9598]
[1729958757713,2.9595,169.16,169.12,2.96]
[1729958757913,7.0392,169.21,169.1,1.2628]
[1729958758313,2.9591,169.18,169.12,2.9601]
[1729958758504,7.0392,169.21,169.12,2.9601]
[1729958758912,2.9596,169.16,169.12,2.9601]
[1729958760610,7.0392,169.21,169.1,1.2628]
[1729958760814,24.8592,169.21,169.07,4.54]
[1729958761109,2.9603,169.12,169.07,4.54]
[1729958761315,4.54,169.16,169.08,2.9607]
[1729958761517,4.54,169.16,169.07,4.54]
[1729958761721,4.54,169.16,169.04,1.2519]
[1729958762013,4.54,169.16,169.04,5.7919]
[1729958762215,2.9604,169.11,169.04,5.7919]
[1729958762514,4.54,169.16,169.06,2.961]
[1729958762813,2.9607,169.09,169.04,5.7919]
[1729958763013,4.54,169.16,169.06,2.9611]
[1729958763214,22.36,169.16,168.97,2.4767]
[1729958763520,2.9615,169.05,168.99,4.54]
[1729958763716,4.54,169.08,169.0,2.9621]
[1729958764017,2.9616,169.04,169.0,2.9621]
[1729958764212,2.5577,169.07,168.97,1.2701]
[1729958764413,2.9612,169.06,168.97,5.8101]
[1729958764809,2.9612,169.06,168.99,2.9623]
[1729958765012,2.9612,169.06,168.97,5.8101]
[1729958765416,2.9612,169.06,169.01,2.9619]
[1729958766413,2.9612,169.06,169.02,2.9618]
[1729958767019,2.9617,169.04,169.0,2.9621]
[1729958767222,2.5577,169.07,168.97,1.2701]
[1729958767521,2.5577,169.07,168.96,4.54]
[1729958767713,2.9621,169.01,168.97,2.9627]
[1729958767910,2.9621,169.01,168.96,4.54]
[1729958767911,4.54,169.04,168.96,4.54]
[1729958768121,2.962,169.02,168.98,2.9624]
[1729958770026,4.54,169.04,168.92,1.295]
[1729958770214,2.9622,169.0,168.96,2.9628]
[1729958770418,4.54,169.04,168.92,1.295]
[1729958771613,2.9625,168.99,168.92,1.295]
[1729958771925,4.54,169.04,168.92,1.295]
[1729958772322,2.9619,169.02,168.92,1.295]
[1729958773325,2.9616,169.04,169.0,2.9622]
[1729958773524,4.54,169.05,168.96,4.54]
[1729958774229,2.9615,169.04,168.98,2.9625]
[1729958774528,2.9615,169.04,168.96,4.54]
[1729958774821,2.9612,169.06,168.96,4.54]
[1729958775024,4.54,169.06,168.96,4.54]
[1729958775422,2.9611,169.07,169.02,2.9618]
[1729958775619,4.54,169.08,168.96,4.54]
[1729958775925,2.9612,169.06,169.02,2.9617]
[1729958776126,4.54,169.08,168.96,4.54]
[1729958776625,2.9615,169.05,168.96,4.54]
[1729958776824,4.54,169.08,168.96,4.54]
[1729958777225,2.962,169.02,168.98,2.9625]
[1729958777428,4.54,169.08,168.96,4.54]
[1729958777824,2.9619,169.03,168.99,2.9624]
[1729958778029,4.54,169.04,168.92,1.295]
[1729958778226,4.54,169.04,168.93,4.54]
[1729958778427,2.5379,169.03,168.93,4.54]
[1729958778632,2.9622,169.01,168.97,2.9627]
[1729958778931,2.5379,169.03,168.93,4.54]
[1729958780032,2.9623,169.0,168.97,2.9627]
[1729958780329,2.5379,169.03,168.92,1.295]
[1729958780726,2.9629,168.97,168.93,2.9634]
[1729958781533,4.54,168.99,168.89,4.54]
[1729958781730,4.54,168.99,168.88,4.54]
[1729958782232,2.9632,168.95,168.9,2.9638]
[1729958782531,4.54,168.99,168.9,2.9638]
[1729958782732,4.54,168.99,168.87,4.54]
[1729958782928,2.9633,168.94,168.87,4.54]
[1729958783122,4.54,168.99,168.87,4.54]
[1729958783321,4.54,168.99,168.86,1.2035]
[1729958783520,2.9639,168.91,168.87,2.9645]
[1729958785232,4.54,168.94,168.84,4.54]
[1729958785436,2.4815,168.93,168.83,193.21181721]
[1729958785832,4.54,168.92,168.83,193.21181721]
[1729958786236,2.9641,168.9,168.86,2.9647]
[1729958787739,2.4815,168.93,168.83,193.21181721]
[1729958788037,7.0215,168.93,168.83,193.21181721]
[1729958788933,2.4815,168.93,168.83,193.21181721]
[1729958789138,4.54,168.93,168.83,193.21181721]
[1729958789339,7.5035,168.93,168.89,2.964]
[1729958789941,4.54,168.93,168.83,193.21181721]
[1729958790137,4.54,168.93,168.9,2.9639]
[1729958790338,4.54,168.93,168.85,4.54]
[1729958790638,7.5036,168.93,168.89,2.964]
[1729958790833,7.5036,168.93,168.85,4.54]
[1729958791134,4.54,168.93,168.85,4.54]
[1729958791341,4.54,168.93,168.91,2.9637]
[1729958792350,2.9632,168.95,168.91,2.9637]
[1729958794354,4.54,168.96,168.87,1.1974]
[1729958794554,4.54,168.96,168.88,1.2714]
[1729958794852,4.54,168.96,168.89,4.54]
[1729958795047,2.3965,168.99,168.89,4.54]
[1729958795048,2.3965,168.99,168.93,2.9634]
[1729958795249,4.54,168.98,168.93,2.9634]
[1729958795454,2.9629,168.97,168.93,2.9634]
[1729958796157,2.9629,168.97,168.89,4.54]
[1729958796349,4.54,168.98,168.89,4.54]
[1729958796852,7.5026,168.98,168.95,2.9631]
[1729958798557,2.9626,168.98,168.95,2.9631]
[1729958799150,4.54,168.99,168.89,4.54]
[1729958800556,2.9633,168.94,168.91,2.9638]
[1729958800751,4.54,168.99,168.89,4.54]
[1729958800951,4.54,168.99,168.88,1.2714]
[1729958801356,2.9635,168.93,168.9,2.9639]
[1729958801754,4.54,168.95,168.9,2.9639]
[1729958801953,2.9633,168.94,168.9,2.9639]
[1729958806161,4.54,168.95,168.92,2.9636]
[1729958806746,2.5346,169.01,168.9,4.54]
[1729958807054,4.54,169.0,168.9,4.54]
[1729958807255,2.9626,168.98,168.9,4.54]
[1729958808258,2.9626,168.98,168.95,2.963]
[1729958810253,2.9631,168.96,168.91,2.9637]
[1729958810448,2.9631,168.96,168.89,4.54]
[1729958810653,4.54,169.0,168.89,4.54]
[1729958811660,2.9631,168.96,168.92,2.9635]
[1729958812361,2.9631,168.96,168.93,2.9634]
[1729958813758,2.9629,168.97,168.92,2.9636]
[1729958813962,4.54,169.0,168.93,1.2258]
[1729958814561,2.9625,168.99,168.96,2.9629]
[1729958814865,20.2632,169.08,168.93,1.2258]
[1729958814866,2.4432,169.08,168.93,1.2258]
[1729958815063,4.54,169.07,168.94,1.2636]
[1729958815354,2.9623,169.0,168.94,5.8036]
[1729958816661,2.9628,168.97,168.94,5.8036]
[1729958816958,4.54,169.03,168.93,1.2258]
[1729958818263,2.9627,168.98,168.95,2.9631]
[1729958819560,2.9622,169.01,168.98,2.9624]
[1729958823272,2.4432,169.08,168.95,4.54]
[1729958823461,2.9617,169.03,169.0,2.9621]
[1729958823661,2.9617,169.03,168.96,2.4502]
[1729958823866,4.54,169.07,168.96,2.4502]
[1729958824066,4.54,169.07,168.97,2.9626]
[1729958824369,4.54,169.07,168.96,2.4502]
[1729958824668,4.54,169.07,168.98,2.9625]
[1729958825165,2.962,169.02,168.98,2.9625]
[1729958826169,4.54,169.07,168.96,2.4502]
[1729958826369,2.9623,169.0,168.97,2.9627]
[1729958827868,4.54,169.03,168.93,1.2258]
[1729958828073,4.54,169.03,168.95,2.963]
[1729958828269,4.54,169.03,168.93,5.7658]
[1729958828868,2.9622,169.0,168.97,2.9627]
[1729958829071,4.54,169.03,168.93,5.7658]
[1729958830271,2.9621,169.01,168.98,2.9625]
[1729958830467,4.54,169.03,168.93,5.7658]
[1729958830972,2.9622,169.0,168.93,5.7658]
[1729958831578,4.54,169.03,168.96,2.9628]
[1729958831579,2.9624,168.99,168.96,2.9628]
[1729958831871,4.54,169.03,168.93,1.2258]
[1729958832373,2.9627,168.98,168.94,2.9631]
[1729958832671,4.54,169.03,168.93,1.2258]
[1729958833074,4.54,169.03,168.96,2.9628]
[1729958833075,2.9626,168.98,168.96,2.9628]
[1729958833272,2.9626,168.98,168.93,1.2258]
[1729958833776,2.9626,168.98,168.95,2.963]
[1729958835276,2.9632,168.95,168.93,1.2258]
[1729958835575,4.54,168.99,168.93,1.2258]
[1729958835978,2.963,168.96,168.93,1.2258]
[1729958836777,2.9632,168.95,168.93,1.2258]
[1729958836978,2.9632,168.95,168.92,2.9635]
[1729958837579,2.963,168.96,168.93,2.9634]
[1729958838481,4.54,168.99,168.91,1.2696]
[1729958838675,1.2482,169.02,168.91,1.2696]
[1729958838978,4.54,169.02,168.92,1.2322]
[1729958839278,2.9622,169.01,168.95,2.9631]
[1729958839478,4.54,169.02,168.94,4.54]
[1729958839878,2.9622,169.01,168.97,2.9627]
[1729958840774,2.9622,169.01,168.94,4.54]
[1729958840980,4.54,169.05,169.0,2.9621]
[1729958841478,4.54,169.07,169.0,2.9621]
[1729958841679,2.5267,169.08,169.0,2.9621]
[1729958841880,2.9614,169.05,169.01,2.9619]
[1729958842082,4.54,169.07,168.98,4.54]
[1729958842583,2.9617,169.04,169.0,2.9621]
[1729958843985,4.54,169.07,168.98,4.54]
[1729958844186,4.54,169.07,168.99,2.9624]
[1729958844688,17.82,169.16,169.03,2.9616]
[1729958844689,4.54,169.11,169.03,2.9616]
[1729958844886,4.54,169.11,168.99,3.6788]
[1729958845088,7.5642851,169.11,168.99,3.6788]
[1729958845585,226.91761883,169.28,168.99,3.6788]
[1729958845790,2.5324,169.26,168.99,3.6788]
[1729958845992,2.5324,169.26,168.99,6.67683383]
[1729958846284,2.5324,169.26,169.1,2.9603]
[1729958846490,5.521,169.25,169.11,4.54]
[1729958846693,4.54,169.24,169.11,4.54]
[1729958846885,4.54,169.24,169.11,7.5001]
[1729958847085,4.54,169.24,169.12,1.2025]
[1729958847287,4.54,169.24,169.13,4.54]
[1729958847685,0.981,169.25,169.13,4.54]
[1729958848690,2.9591,169.18,169.13,4.54]
[1729958849288,2.9589,169.19,169.13,4.54]
[1729958849486,0.981,169.25,169.13,4.54]
[1729958849991,2.9591,169.18,169.13,4.54]
[1729958850290,2.9591,169.18,169.14,4.54]
[1729958850490,0.981,169.25,169.12,1.2025]
[1729958850687,2.9593,169.17,169.12,1.2025]
[1729958850887,2.9593,169.17,169.13,5.7895]
[1729958851093,2.9593,169.17,169.14,4.54]
[1729958851385,0.981,169.25,169.13,1.2495]
[1729958851888,2.9584,169.22,169.14,4.54]
[1729958852093,0.981,169.25,169.13,1.2495]
[1729958852290,0.981,169.25,169.13,5.7895]
[1729958852694,2.9596,169.16,169.13,5.7895]
[1729958853193,4.54,169.22,169.13,5.7895]
[1729958853394,4.54,169.22,169.04,57.56]
[1729958853695,22.36,169.22,169.05,2.5336]
[1729958853894,22.36,169.22,169.06,4.54]
[1729958854085,22.36,169.22,169.07,4.54]
[1729958854390,22.36,169.22,169.05,5.4949]
[1729958854587,22.36,169.22,169.08,4.54]
[1729958856096,2.9604,169.11,169.08,4.54]
[1729958856289,2.93336736,169.16,169.05,2.5336]
[1729958856489,17.82,169.24,168.99,1.2501]
[1729958856490,7.036,169.15,169.0,1.2498]
[1729958856796,8.0165,169.15,169.01,7.5019]
[1729958857393,2.9611,169.07,169.01,7.5019]
[1729958857695,2.9611,169.07,169.01,2.9619]
[1729958857897,2.9611,169.07,169.02,4.54]
[1729958858690,4.54,169.11,169.0,2.4698]
[1729958858898,2.9618,169.03,169.0,1.22]
[1729958859092,4.54,169.11,169.0,1.22]
[1729958859588,2.9614,169.05,169.0,1.22]
[1729958865700,4.54,169.11,169.0,1.22]
[1729958865905,17.82,169.1,168.92,1.2078]
[1729958866108,22.36,169.09,168.92,1.2078]
[1729958866401,2.9624,168.99,168.93,2.9633]
[1729958866704,4.54,168.98,168.93,2.9633]
[1729958866903,2.9628,168.97,168.92,1.2078]
[1729958867405,2.954011,169.04,168.92,1.2078]
[1729958867603,4.54,169.03,168.92,1.2078]
[1729958867804,7.53340966,169.03,168.92,1.2078]
[1729958868103,7.53340966,169.03,168.93,2.9634]
[1729958870108,2.2528,169.07,168.93,2.9634]
[1729958870300,22.36,169.06,168.93,2.9634]
[1729958870505,2.2528,169.07,168.92,1.2078]
[1729958870710,4.54,169.06,168.92,1.2078]
[1729958871112,7.46838998,169.06,168.96,2.9628]
[1729958874518,25.28838998,169.06,168.92,1.2078]
[1729958874720,25.28838998,169.06,168.93,2.9634]
[1729958875118,25.28838998,169.06,168.94,2.9633]
[1729958876616,25.28838998,169.06,168.92,4.1714]
[1729958876816,25.28838998,169.06,168.92,1.2078]
[1729958878419,25.28838998,169.06,168.96,2.9629]
[1729958878719,25.28838998,169.06,168.92,1.2078]
[1729958878921,4.58,169.05,168.97,2.9626]
[1729958881020,2.92838998,169.06,168.97,2.9626]
[1729958881222,4.58,169.05,168.97,2.9626]
[1729958881423,7.53268951,169.05,168.97,2.9626]
[1729958881619,2.2528,169.07,169.0,2.9622]
[1729958881923,4.58,169.06,169.0,2.9622]
[1729958883324,4.58,169.06,168.92,5.7878]
[1729958883521,4.58,169.06,169.01,2.962]
[1729958883721,4.58,169.06,168.96,4.58]
[1729958883921,4.58,169.06,168.97,2.4851]
[1729958884220,4.58,169.06,169.05,2.9612]
[1729958884416,4.58,169.07,168.97,2.4851]
[1729958884725,4.58,169.07,169.04,2.9615]
[1729958885324,1.2594,169.08,169.04,2.9615]
[1729958885524,4.58,169.07,169.04,2.9615]
[1729958885823,1.2594,169.08,168.97,2.4851]
[1729958886025,4.58,169.07,169.05,2.9613]
[1729958887525,1.2594,169.08,169.05,2.9613]
[1729958887725,5.8394,169.08,169.05,2.9613]
[1729958888323,176.3687326,169.11,168.97,2.4851]
[1729958888525,4.58,169.1,169.09,2.9606]
[1729958888727,180.9487326,169.11,168.98,4.58]
[1729958888924,180.9487326,169.11,168.99,1.2742]
[1729958889123,180.9487326,169.11,169.08,2.9608]
[1729958889425,176.3687326,169.11,169.02,4.58]
[1729958889625,4.58,169.12,169.02,4.58]
[1729958890323,4.58,169.12,169.05,2.9614]
[1729958890626,4.58,169.12,169.02,4.58]
[1729958890826,4.58,169.12,169.07,2.9609]
[1729958897929,4.58,169.12,169.0,4.58]
[1729958898433,4.58,169.12,169.09,2.9606]
[1729958899233,57.56,169.14,169.04,4.58]
[1729958899536,4.58,169.13,169.1,2.9604]
[1729958901136,17.82,169.22,169.06,1.2057]
[1729958901443,4.58,169.21,169.06,1.2057]
[1729958904242,4.58,169.21,169.12,2.96]
[1729958904439,4.58,169.21,169.09,4.54]
[1729958904839,4.58,169.21,169.13,2.9598]
[1729958905442,4.58,169.21,169.09,4.54]
[1729958905642,4.58,169.21,169.14,2.9598]
[1729958908849,4.58,169.21,169.15,2.9596]
[1729958909043,1.2058,169.25,169.13,4.54]
[1729958909350,5.7458,169.25,169.14,1.2494]
[1729958909543,5.7458,169.25,169.14,3.6677]
[1729958909745,5.7458,169.25,169.15,4.54]
[1729958910050,2.9584,169.22,169.18,2.9589]
[1729958910249,5.7458,169.25,169.15,4.54]
[1729958910747,8.7038,169.25,169.21,2.9584]
[1729958911951,5.7458,169.25,169.21,2.9584]
[1729958912354,5.7458,169.25,169.2,2.9587]
[1729958912856,2.9582,169.23,169.14,6.9854]
[1729958913057,1.2863,169.24,169.14,6.9854]
[1729958913556,1.2863,169.24,169.17,2.9593]
[1729958913755,2.9583,169.23,169.14,6.9854]
[1729958914057,2.9583,169.23,169.2,2.9587]
[1729958914554,5.7458,169.25,169.2,2.9587]
[1729958914750,2.9581,169.24,169.2,2.9587]
[1729958918159,5.7458,169.25,169.2,2.9587]
[1729958918358,8.7037,169.25,169.2,2.9587]
[1729958918560,5.7458,169.25,169.14,6.9854]
[1729958918858,5.7458,169.25,169.21,2.9585]
[1729958920055,5.7458,169.25,169.14,6.9854]
[1729958920261,7.4973,169.29,169.14,6.9854]
[1729958920458,4.54,169.29,169.15,1.2386]
[1729958920659,4.54,169.29,169.24,2.9579]
[1729958920855,7.4972,169.29,169.24,2.9579]
[1729958921657,4.54,169.29,169.25,2.9578]
[1729958921860,4.54,169.29,169.19,4.54]
[1729958922162,5.7929,169.31,169.19,4.54]
[1729958922862,8.7499,169.31,169.27,2.9574]
[1729958923458,5.7929,169.31,169.19,4.54]
[1729958923655,5.7929,169.31,169.28,2.9572]
[1729958924562,2.99608566,169.32,169.28,2.9572]
[1729958924760,4.54,169.32,169.23,4.54]
[1729958924956,4.54,169.32,169.24,1.2752]
[1729958925261,4.54,169.32,169.29,2.957]
[1729958925658,2.9564,169.34,169.29,2.957]
[1729958925858,4.54,169.33,169.29,2.957]
[1729958926157,2.5443,169.35,169.24,2.5805]
[1729958926363,5.8038,169.35,169.24,2.5805]
[1729958926663,5.8038,169.35,169.25,1.2659]
[1729958926861,5.8038,169.35,169.31,2.9567]
[1729958928358,4.54,169.37,169.34,2.9562]
[1729958928562,4.54,169.37,169.27,4.54]
[1729958928965,4.54,169.37,169.32,2.9565]
[1729958930266,7.4959,169.37,169.32,2.9565]
[1729958931263,4.54,169.37,169.27,4.54]
[1729958931667,7.57123076,169.37,169.25,1.2659]
[1729958931872,7.57123076,169.37,169.25,5.8059]
[1729958932574,7.57123076,169.37,169.25,1.2659]
[1729958932766,2.9565,169.33,169.24,7.1205]
[1729958932966,7.4965,169.33,169.24,7.1205]
[1729958933162,2.9566,169.32,169.28,2.9573]
[1729958934574,2.9569,169.31,169.28,2.9573]
[1729958935476,4.54,169.33,169.24,2.5805]
[1729958935772,4.54,169.33,169.17,1.2795]
[1729958935980,2.4931,169.32,169.18,7.0171]
[1729958936178,2.9574,169.28,169.25,2.9578]
[1729958936773,2.4931,169.32,169.18,7.0171]
[1729958936981,2.9571,169.3,169.27,2.9575]
[1729958937778,2.4931,169.32,169.22,4.54]
[1729958937979,2.9572,169.29,169.25,2.9577]
[1729958938780,2.9572,169.29,169.22,4.54]
[1729958938980,2.9572,169.29,169.26,2.9576]
[1729958940382,2.9572,169.29,169.25,2.9577]
[1729958940780,4.54,169.29,169.22,4.54]
[1729958941181,2.9575,169.27,169.19,4.54]
[1729958941379,4.54,169.29,169.18,2.4771]
[1729958941876,22.36,169.29,169.06,57.48]
[1729958942177,2.9581,169.24,169.15,2.9596]
[1729958942383,5.8429,169.23,169.12,4.54]
[1729958943272,2.9586,169.21,169.17,2.9592]
[1729958943470,4.54,169.25,169.16,4.54]
[1729958944585,2.958,169.24,169.16,4.54]
[1729958944981,2.958,169.24,169.19,2.9588]
[1729958945278,1.2624,169.3,169.16,4.54]
[1729958945483,4.54,169.29,169.17,1.2777]
[1729958945877,4.54,169.29,169.18,1.2844]
[1729958946079,22.36,169.29,169.2,2.9587]
[1729958946781,2.9582,169.24,169.2,2.9587]
[1729958948076,2.9582,169.23,169.2,2.9587]
[1729958948378,4.54,169.25,169.18,1.2844]
[1729958948680,2.9584,169.22,169.18,1.2844]
[1729958949283,2.9584,169.22,169.19,2.9589]
[1729958949784,2.9588,169.2,169.16,2.9593]
[1729958949980,1.216,169.24,169.15,4.54]
[1729958950289,2.9587,169.21,169.15,4.54]
[1729958950584,1.216,169.24,169.17,2.9591]
[1729958951783,2.9584,169.22,169.17,2.9591]
[1729958952282,1.216,169.24,169.13,1.2081]
[1729958952482,2.9587,169.2,169.13,1.2081]
[1729958952680,4.54,169.2,169.13,1.2081]
[1729958953180,4.54,169.2,169.1,4.54]
[1729958953679,2.9593,169.17,169.12,2.96]
[1729958953983,2.9593,169.17,169.1,4.54]
[1729958954484,4.54,169.19,169.13,2.9599]
[1729958954684,2.9595,169.16,169.13,2.9599]
[1729958954986,4.54,169.19,169.13,2.9599]
[1729958956282,2.9593,169.17,169.13,2.9599]
[1729958962193,2.9593,169.17,169.1,4.54]
[1729958962382,2.9593,169.17,169.12,2.9601]
[1729958962592,4.54,169.19,169.08,1.1949]
[1729958962895,4.54,169.19,169.08,4.1556]
[1729958963092,2.9601,169.13,169.08,4.1556]
[1729958963291,2.9601,169.13,169.08,1.1949]
[1729958963492,2.9601,169.13,169.09,2.9606]
[1729958963792,4.54,169.15,169.08,1.1949]
[1729958963992,4.54,169.15,169.09,2.9606]
[1729958964894,2.9601,169.13,169.09,2.9606]
[1729958965793,4.54,169.15,169.08,1.1949]
[1729958965992,2.9605,169.1,169.08,1.1949]
[1729958966695,2.9605,169.1,169.07,4.1934]
[1729958966696,2.9605,169.1,169.07,2.9609]
[1729958968491,2.961,169.08,169.05,2.9612]
[1729958969089,2.9613,169.06,169.03,2.9616]
[1729958969294,4.54,169.11,169.0,2.4566]
[1729958971296,2.9608,169.09,169.05,2.9612]
[1729958971992,2.9608,169.09,169.06,2.9612]
[1729958972194,4.54,169.11,169.0,2.4566]
[1729958972795,7.5004,169.11,169.08,2.9607]
[1729958973697,1.2392,169.14,169.04,4.54]
[1729958973900,2.96,169.13,169.1,2.9604]
[1729958974198,4.54,169.18,169.1,2.9604]
[1729958974697,2.9595,169.16,169.1,2.9604]
[1729958975003,4.54,169.18,169.1,2.9604]
[1729958975598,2.9595,169.16,169.1,2.9604]